bitfinex/quotes_BTCUSD_20250928
["timestamp","ask_amount","ask_price","bid_price","bid_amount"]
[1759068084444,0.52485309,109930.0,109920.0,0.02522]
[1759068085773,0.34291914,109930.0,109920.0,0.02522]
[1759068085987,8.34287914,109930.0,109920.0,0.02522]
[1759068086192,8.52481309,109930.0,109920.0,0.02522]
[1759068087237,8.04927914,109930.0,109920.0,0.02522]
[1759068087443,8.34287914,109930.0,109920.0,0.02522]
[1759068088809,8.34283914,109930.0,109920.0,0.02522]
[1759068091114,8.96477309,109930.0,109920.0,0.02522]
[1759068091746,8.78283914,109930.0,109920.0,0.02522]
[1759068096771,8.48927914,109930.0,109920.0,0.02719]
[1759068096980,8.48927914,109930.0,109920.0,0.03039]
[1759068097193,8.78267914,109930.0,109920.0,0.03039]
[1759068097566,8.48927914,109930.0,109920.0,0.03039]
[1759068097775,8.78267914,109930.0,109920.0,0.03039]
[1759068098396,8.78267914,109930.0,109920.0,0.02719]
[1759068101186,8.78267914,109930.0,109920.0,0.03039]
[1759068101585,8.58218792,109930.0,109920.0,0.03039]
[1759068101791,8.77505291,109930.0,109920.0,0.03039]
[1759068102020,8.46737917,109930.0,109920.0,0.03039]
[1759068102242,8.44,109930.0,109920.0,0.03039]
[1759068102461,8.73332,109930.0,109920.0,0.05776727]
[1759068105137,8.73328,109930.0,109920.0,0.05776727]
[1759068111553,8.74755367,109930.0,109920.0,0.05776727]
[1759068112063,8.74743367,109930.0,109920.0,0.05776727]
[1759068113119,0.74743367,109930.0,109920.0,0.05776727]
[1759068113334,0.74743367,109930.0,109920.0,0.05259727]
[1759068113543,0.74743367,109930.0,109920.0,0.05463727]
[1759068114790,0.74743367,109930.0,109920.0,0.05770727]
[1759068119644,0.74743367,109930.0,109920.0,0.05463727]
[1759068119874,8.74743367,109930.0,109920.0,0.05259727]
[1759068120014,8.74727367,109930.0,109920.0,0.05259727]
[1759068122182,8.74727367,109930.0,109920.0,0.05463727]
[1759068124007,8.74727367,109930.0,109920.0,0.05259727]
[1759068124624,8.45427367,109930.0,109920.0,0.05463727]
[1759068124828,8.74723367,109930.0,109920.0,0.05770727]
[1759068126773,8.74723367,109930.0,109920.0,0.05463727]
[1759068129620,8.74723367,109930.0,109920.0,0.05259727]
[1759068132318,8.73296,109930.0,109920.0,0.05259727]
[1759068132739,8.73296,109930.0,109920.0,0.05781727]
[1759068133602,8.44,109930.0,109920.0,0.05781727]
[1759068133825,8.73276,109930.0,109920.0,0.05781727]
[1759068137937,8.39276,109930.0,109920.0,0.05781727]
[1759068138414,8.39276,109930.0,109920.0,0.05467727]
[1759068139394,8.39276,109930.0,109920.0,0.05259727]
[1759068140754,8.39276,109930.0,109920.0,0.05455727]
[1759068145234,8.40703378,109930.0,109920.0,0.05455727]
[1759068146781,8.19915483,109930.0,109920.0,0.05455727]
[1759068147128,8.30703378,109930.0,109920.0,0.05455727]
[1759068148334,8.30703378,109930.0,109920.0,0.05259727]
[1759068148555,8.29276,109930.0,109920.0,0.05259727]
[1759068149161,8.63276,109930.0,109920.0,0.05259727]
[1759068151841,8.6470338,109930.0,109920.0,0.05259727]
[1759068155751,8.6470338,109930.0,109920.0,0.02522]
[1759068156129,8.82896775,109930.0,109920.0,0.02522]
[1759068156542,8.85418775,109930.0,109920.0,0.02522]
[1759068157679,8.83991395,109930.0,109920.0,0.02522]
[1759068158243,8.54715395,109930.0,109920.0,0.02522]
[1759068158443,8.93431395,109930.0,109920.0,0.02522]
[1759068159264,8.93427395,109930.0,109920.0,0.02522]
[1759068160132,8.54715395,109930.0,109920.0,0.02522]
[1759068160339,8.93427395,109930.0,109920.0,0.02522]
[1759068160933,8.94854814,109930.0,109920.0,0.02522]
[1759068161941,8.95856193,109930.0,109920.0,0.02522]
[1759068164047,8.86368193,109930.0,109920.0,0.02522]
[1759068164247,8.95852193,109930.0,109920.0,0.02522]
[1759068164445,8.57144193,109930.0,109920.0,0.02522]
[1759068164644,8.95852193,109930.0,109920.0,0.02522]
[1759068166296,8.98867383,109930.0,109920.0,0.02522]
[1759068166496,8.99167383,109930.0,109920.0,0.02422]
[1759068166860,8.99267383,109930.0,109920.0,0.02422]
[1759068167690,8.97839964,109930.0,109920.0,0.02422]
[1759068167909,8.97539964,109930.0,109920.0,0.02422]
[1759068168435,8.97839964,109930.0,109920.0,0.02422]
[1759068170431,8.58030585,109930.0,109920.0,0.02422]
[1759068170560,8.97030585,109930.0,109920.0,0.02422]
[1759068170785,8.98158193,109930.0,109920.0,0.02422]
[1759068170978,8.97858193,109930.0,109920.0,0.02422]
[1759068171182,8.98258193,109930.0,109920.0,0.02422]
[1759068171397,9.03927663,109930.0,109920.0,0.02422]
[1759068171602,9.01367673,109930.0,109920.0,0.02422]
[1759068171807,9.00967673,109930.0,109920.0,0.02422]
[1759068172260,9.01667673,109930.0,109920.0,0.02422]
[1759068172500,9.01267673,109930.0,109920.0,0.02422]
[1759068172704,9.1013882,109930.0,109920.0,0.02422]
[1759068172925,9.1043882,109930.0,109920.0,0.02422]
[1759068173618,8.7174282,109930.0,109920.0,0.02422]
[1759068173835,9.4837882,109930.0,109920.0,0.02422]
[1759068175070,9.49409709,109930.0,109920.0,0.02422]
[1759068175190,8.72773709,109930.0,109920.0,0.02422]
[1759068175399,9.49409709,109930.0,109920.0,0.02422]
[1759068176267,8.52680835,109930.0,109920.0,0.02422]
[1759068176482,9.29312835,109930.0,109920.0,0.02422]
[1759068177671,8.52680835,109930.0,109920.0,0.02422]
[1759068177879,9.20441688,109930.0,109920.0,0.02422]
[1759068178077,8.43809688,109930.0,109920.0,0.02422]
[1759068178281,9.1901808,109930.0,109920.0,0.02422]
[1759068179017,8.4238208,109930.0,109920.0,0.02422]
[1759068179171,9.1901408,109930.0,109920.0,0.02422]
[1759068179536,9.27885227,109930.0,109920.0,0.02422]
[1759068180383,9.26854338,109930.0,109920.0,0.02422]
[1759068181281,8.51256777,109930.0,109920.0,0.02422]
[1759068181492,9.29312521,109930.0,109920.0,0.02422]
[1759068182780,9.31868511,109930.0,109920.0,0.02422]
[1759068183186,9.31868511,109930.0,109920.0,0.01922]
[1759068184277,9.30868511,109930.0,109920.0,0.01922]
[1759068184505,9.31768511,109930.0,109920.0,0.01922]
[1759068184731,0.5219505,109920.0,109910.0,0.005]
[1759068184961,8.63858166,109920.0,109910.0,0.005]
[1759068185165,8.72729313,109920.0,109910.0,0.005]
[1759068185302,8.7546836,109920.0,109910.0,0.005]
[1759068185503,8.82297631,109920.0,109910.0,0.005]
[1759068185918,8.82797631,109920.0,109910.0,0.005]
[1759068186539,8.85812821,109920.0,109910.0,0.005]
[1759068186742,8.85812821,109920.0,109910.0,0.02799]
[1759068187320,8.85812821,109920.0,109910.0,0.02899]
[1759068187745,8.88526301,109920.0,109910.0,0.02899]
[1759068187962,8.59326301,109920.0,109910.0,0.02899]
[1759068188380,9.35950301,109920.0,109910.0,0.02899]
[1759068188564,8.59326301,109920.0,109910.0,0.02899]
[1759068188782,8.45185684,109920.0,109910.0,0.03112]
[1759068188951,9.21809684,109920.0,109910.0,0.03432]
[1759068189376,9.21809684,109920.0,109910.0,0.03112]
[1759068189576,9.66689684,109920.0,109910.0,0.03112]
[1759068189737,9.68069484,109920.0,109910.0,0.03112]
[1759068190506,9.68069484,109920.0,109910.0,0.02899]
[1759068190929,9.69497357,109920.0,109910.0,0.02899]
[1759068192745,9.72053347,109920.0,109910.0,0.02899]
[1759068192957,9.74766827,109920.0,109910.0,0.02899]
[1759068193138,0.55213552,109900.0,109890.0,0.00321]
[1759068193377,8.73788678,109900.0,109890.0,0.00329447]
[1759068193592,8.76195678,109900.0,109890.0,0.00533447]
[1759068193804,8.7762375,109900.0,109890.0,0.00533447]
[1759068193990,8.80363075,109900.0,109890.0,0.00212447]
[1759068194284,8.80363075,109900.0,109890.0,8.447e-05]
[1759068194682,8.80363075,109900.0,109890.0,0.00933447]
[1759068194925,8.86511833,109900.0,109890.0,0.00933447]
[1759068195272,8.86511833,109900.0,109890.0,0.03315447]
[1759068195685,8.86611833,109900.0,109890.0,0.03315447]
[1759068195985,8.86511833,109900.0,109890.0,0.02994447]
[1759068196184,8.86511833,109900.0,109890.0,0.02594447]
[1759068196731,8.86515833,109900.0,109890.0,0.02915447]
[1759068197593,8.86615833,109900.0,109890.0,0.02390447]
[1759068198339,8.91885303,109900.0,109890.0,0.02390447]
[1759068199418,8.90457231,109900.0,109890.0,0.02390447]
[1759068200525,9.28405231,109900.0,109890.0,0.02390447]
[1759068201415,8.51785231,109900.0,109890.0,0.02390447]
[1759068201662,9.28405231,109900.0,109890.0,0.02390447]
[1759068202080,9.18913231,109900.0,109890.0,0.02390447]
[1759068202296,9.29829362,109900.0,109890.0,0.02390447]
[1759068202503,8.82389362,109900.0,109890.0,0.02390447]
[1759068202723,9.29829362,109900.0,109890.0,0.02390447]
[1759068204320,9.74709362,109900.0,109890.0,0.02390447]
[1759068204521,9.65225362,109900.0,109890.0,0.02390447]
[1759068204758,8.98093362,109900.0,109890.0,0.02390447]
[1759068204932,9.74713362,109900.0,109890.0,0.02390447]
[1759068205365,9.73309821,109900.0,109890.0,0.02390447]
[1759068205748,8.96693821,109900.0,109890.0,0.02390447]
[1759068206119,9.73309821,109900.0,109890.0,0.02390447]
[1759068206253,8.90545063,109900.0,109890.0,0.02390447]
[1759068206436,9.67161063,109900.0,109890.0,0.02390447]
[1759068207976,9.65732932,109900.0,109890.0,0.02390447]
[1759068208424,9.65632932,109900.0,109890.0,0.02390447]
[1759068208642,9.65932932,109900.0,109890.0,0.02390447]
[1759068208843,9.74804079,109900.0,109890.0,0.02390447]
[1759068209057,9.74504079,109900.0,109890.0,0.02390447]
[1759068209292,9.75104079,109900.0,109890.0,0.02390447]
[1759068209704,9.74804079,109900.0,109890.0,0.02390447]
[1759068210506,9.75104079,109900.0,109890.0,0.02390447]
[1759068211342,9.76532275,109900.0,109890.0,0.02390447]
[1759068215668,8.99916275,109900.0,109890.0,0.02390447]
[1759068215889,9.76528275,109900.0,109890.0,0.02390447]
[1759068217148,9.76524275,109900.0,109890.0,0.02390447]
[1759068217855,8.99916275,109900.0,109890.0,0.02390447]
[1759068218072,9.76520275,109900.0,109890.0,0.02390447]
[1759068218725,8.98488079,109900.0,109890.0,0.02598447]
[1759068218933,9.72536089,109900.0,109890.0,0.02390447]
[1759068221718,9.73964288,109900.0,109890.0,0.02390447]
[1759068227094,9.81520278,109900.0,109890.0,0.02390447]
[1759068228474,9.80092079,109900.0,109890.0,0.02390447]
[1759068231293,0.34,109850.0,109840.0,0.07295609]
[1759068231499,8.70745771,109850.0,109840.0,0.07549077]
[1759068231720,8.73221771,109850.0,109840.0,0.07549077]
[1759068231918,8.73221771,109850.0,109840.0,0.00548468]
[1759068232563,8.81586451,109850.0,109840.0,0.02048468]
[1759068232780,8.81586451,109850.0,109840.0,0.01448468]
[1759068233186,8.81586451,109850.0,109840.0,0.01848468]
[1759068234657,8.81586451,109850.0,109840.0,0.00948468]
[1759068234863,8.64346164,109850.0,109840.0,0.00948468]
[1759068235270,8.25718164,109850.0,109840.0,0.01748468]
[1759068235490,8.64346164,109850.0,109840.0,0.01348468]
[1759068235705,8.64346164,109850.0,109840.0,0.00948468]
[1759068236131,8.64346164,109850.0,109840.0,0.01748468]
[1759068237765,8.25718164,109850.0,109840.0,0.01748468]
[1759068237975,8.62917714,109850.0,109840.0,0.01748468]
[1759068238461,8.24289714,109850.0,109840.0,0.01748468]
[1759068238664,8.62917714,109850.0,109840.0,0.01748468]
[1759068238924,8.24289714,109850.0,109840.0,0.01748468]
[1759068239103,8.62917714,109850.0,109840.0,0.01748468]
[1759068239852,8.24289714,109850.0,109840.0,0.01748468]
[1759068240147,8.53425714,109850.0,109840.0,0.01748468]
[1759068240360,8.62913714,109850.0,109840.0,0.01748468]
[1759068242519,8.64342186,109850.0,109840.0,0.01748468]
[1759068243961,8.25718186,109850.0,109840.0,0.01748468]
[1759068244164,8.64338186,109850.0,109840.0,0.01748468]
[1759068247119,8.62909714,109850.0,109840.0,0.01748468]
[1759068247543,8.81116359,109850.0,109840.0,0.01748468]
[1759068248160,8.28909714,109850.0,109840.0,0.01748468]
[1759068248470,8.27939356,109850.0,109840.0,0.01748468]
[1759068249502,8.61939356,109850.0,109840.0,0.01748468]
[1759068250428,8.63367804,109850.0,109840.0,0.01748468]
[1759068254470,8.81574449,109850.0,109840.0,0.01748468]
[1759068254682,8.81574449,109850.0,109840.0,0.01246468]
[1759068263171,8.80146001,109850.0,109840.0,0.01246468]
[1759068263583,8.70638001,109850.0,109840.0,0.01449468]
[1759068263947,8.80126001,109850.0,109840.0,0.01449468]
[1759068264348,8.80126001,109850.0,109840.0,0.01752468]
[1759068264662,8.5897921,109850.0,109840.0,0.01752468]
[1759068265216,8.5897921,109850.0,109840.0,0.01449468]
[1759068266045,8.60407703,109850.0,109840.0,0.01449468]
[1759068267180,8.5897921,109850.0,109840.0,0.01449468]
[1759068267392,8.5897921,109850.0,109840.0,0.01246468]
[1759068270431,8.60407707,109850.0,109840.0,0.01246468]
[1759068271476,8.63147932,109850.0,109840.0,0.01246468]
[1759068274286,8.53651932,109850.0,109840.0,0.01246468]
[1759068274465,8.63139932,109850.0,109840.0,0.01246468]
[1759068274671,8.63135932,109850.0,109840.0,0.01246468]
[1759068277796,8.61707435,109850.0,109840.0,0.01246468]
[1759068278008,8.52219435,109850.0,109840.0,0.01246468]
[1759068278220,8.61707435,109850.0,109840.0,0.01246468]
[1759068279071,8.02382905,109850.0,109840.0,0.01246468]
[1759068279487,8.40966905,109850.0,109840.0,0.01246468]
[1759068280628,8.42395553,109850.0,109840.0,0.01246468]
[1759068280863,8.50680213,109850.0,109840.0,0.01246468]
[1759068281674,8.41192213,109850.0,109840.0,0.01246468]
[1759068281848,8.12096213,109850.0,109840.0,0.01246468]
[1759068282075,8.50680213,109850.0,109840.0,0.00046468]
[1759068282606,8.50680213,109850.0,109840.0,0.00546468]
[1759068283809,8.12096213,109850.0,109840.0,0.00546468]
[1759068284015,8.50680213,109850.0,109840.0,0.00546468]
[1759068284198,8.50676213,109850.0,109840.0,0.00546468]
[1759068287800,8.49247565,109850.0,109840.0,0.00546468]
[1759068288179,8.39759565,109850.0,109840.0,0.00546468]
[1759068288409,8.49251565,109850.0,109840.0,0.00546468]
[1759068289859,8.10667565,109850.0,109840.0,0.00546468]
[1759068290063,8.49251565,109850.0,109840.0,0.00546468]
[1759068290818,8.5068026,109850.0,109840.0,0.00546468]
[1759068291809,8.32783674,109850.0,109840.0,0.00546468]
[1759068297605,8.31354979,109850.0,109840.0,0.00546468]
[1759068300714,8.32783673,109850.0,109840.0,0.00546468]
[1759068306085,8.08761847,109850.0,109840.0,0.00546468]
[1759068306931,8.01825617,109850.0,109840.0,0.00546468]
[1759068307611,8.00396923,109850.0,109840.0,0.00546468]
[1759068307815,7.97683443,109850.0,109840.0,0.00745468]
[1759068308188,7.97683443,109850.0,109840.0,0.00546468]
[1759068308586,7.95103453,109850.0,109840.0,0.00546468]
[1759068308986,7.95103453,109850.0,109840.0,0.00745468]
[1759068309770,7.56543453,109850.0,109840.0,0.00745468]
[1759068310238,7.95103453,109850.0,109840.0,0.01038468]
[1759068310651,7.96532129,109850.0,109840.0,0.01038468]
[1759068311459,7.95103453,109850.0,109840.0,0.00745468]
[1759068315231,7.95103453,109850.0,109840.0,0.00546468]
[1759068315456,8.039746,109850.0,109840.0,0.00546468]
[1759068316283,7.95103453,109850.0,109840.0,0.00546468]
[1759068317207,7.95103453,109850.0,109840.0,0.00146468]
[1759068317545,7.95103453,109850.0,109840.0,0.00246468]
[1759068318113,7.95103453,109850.0,109840.0,0.00046468]
[1759068318308,7.95103453,109850.0,109840.0,0.00246468]
[1759068318538,8.06216468,109850.0,109840.0,0.00246468]
[1759068319320,8.08929948,109850.0,109840.0,0.00246468]
[1759068320762,8.00372923,109850.0,109840.0,0.00246468]
[1759068321605,8.01801761,109850.0,109840.0,0.00246468]
[1759068323098,8.46681761,109850.0,109840.0,0.00246468]
[1759068330270,8.28647356,109850.0,109840.0,0.00246468]
[1759068337599,8.26091366,109850.0,109840.0,0.00447468]
[1759068337776,7.87531366,109850.0,109840.0,0.00767468]
[1759068337939,8.12425048,109850.0,109840.0,0.00767468]
[1759068338150,8.21917048,109850.0,109840.0,0.00767468]
[1759068339256,7.83389048,109850.0,109840.0,0.00767468]
[1759068339456,8.21917048,109850.0,109840.0,0.00767468]
[1759068340841,8.23345848,109850.0,109840.0,0.00767468]
[1759068342274,7.84817848,109850.0,109840.0,0.00767468]
[1759068342395,8.23341848,109850.0,109840.0,0.00767468]
[1759068343666,7.84817848,109850.0,109840.0,0.00767468]
[1759068343866,8.23341848,109850.0,109840.0,0.00767468]
[1759068347255,7.84817848,109850.0,109840.0,0.00767468]
[1759068347458,8.23333848,109850.0,109840.0,0.00767468]
[1759068347888,8.21905048,109850.0,109840.0,0.00767468]
[1759068350940,8.23333783,109850.0,109840.0,0.00767468]
[1759068352086,8.23329783,109850.0,109840.0,0.00767468]
[1759068352526,7.94309783,109850.0,109840.0,0.00767468]
[1759068352729,8.23325783,109850.0,109840.0,0.00767468]
[1759068353357,7.84817783,109850.0,109840.0,0.00767468]
[1759068353566,8.23325783,109850.0,109840.0,0.00767468]
[1759068354190,7.84817783,109850.0,109840.0,0.00767468]
[1759068354416,7.44445783,109850.0,109840.0,0.00767468]
[1759068354613,7.78445783,109850.0,109840.0,0.00767468]
[1759068355490,7.21731138,109850.0,109840.0,0.00767468]
[1759068355684,7.78445783,109850.0,109840.0,0.00767468]
[1759068356319,7.50743138,109850.0,109840.0,0.00767468]
[1759068356526,7.78441783,109850.0,109840.0,0.00767468]
[1759068356743,7.21731138,109850.0,109840.0,0.00767468]
[1759068356875,7.78441783,109850.0,109840.0,0.00767468]
[1759068357709,7.77013048,109850.0,109840.0,0.00767468]
[1759068360518,7.58798403,109850.0,109840.0,0.00767468]
[1759068360729,7.78433677,109850.0,109840.0,0.00767468]
[1759068361370,7.60227032,109850.0,109840.0,0.00767468]
[1759068362672,7.21731032,109850.0,109840.0,0.00767468]
[1759068362900,7.60227032,109850.0,109840.0,0.00767468]
[1759068363122,7.78433677,109850.0,109840.0,0.00767468]
[1759068367714,7.77005048,109850.0,109840.0,0.00767468]
[1759068373375,7.38509048,109850.0,109840.0,0.00767468]
[1759068373576,7.76989048,109850.0,109840.0,0.00767468]
[1759068375798,7.57186711,109850.0,109840.0,0.00767468]
[1759068377989,7.18706711,109850.0,109840.0,0.00767468]
[1759068378189,7.57178711,109850.0,109840.0,0.00767468]
[1759068378393,7.47686711,109850.0,109840.0,0.00767468]
[1759068378639,7.57178711,109850.0,109840.0,0.00767468]
[1759068380580,7.39607856,109850.0,109840.0,0.00767468]
[1759068381989,7.36867631,109850.0,109840.0,0.00767468]
[1759068385761,6.98395631,109850.0,109840.0,0.00767468]
[1759068386004,7.36859631,109850.0,109840.0,0.00767468]
[1759068386873,7.27363631,109850.0,109840.0,0.00767468]
[1759068387081,7.36855631,109850.0,109840.0,0.00767468]
[1759068387711,7.35427028,109850.0,109840.0,0.00767468]
[1759068390728,7.36855636,109850.0,109840.0,0.00767468]
[1759068391869,7.36855636,109850.0,109840.0,0.00447468]
[1759068396101,7.36855636,109850.0,109840.0,0.00246468]
[1759068398353,7.35427028,109850.0,109840.0,0.00246468]
[1759068399173,7.15343208,109850.0,109840.0,0.00246468]
[1759068401350,7.16771827,109850.0,109840.0,0.00246468]
[1759068403449,7.19511998,109850.0,109840.0,0.00246468]
[1759068407852,7.18083379,109850.0,109840.0,0.00246468]
[1759068409707,7.18055379,109850.0,109840.0,0.00246468]
[1759068409920,7.18051379,109850.0,109840.0,0.00246468]
[1759068410684,7.19479998,109850.0,109840.0,0.00246468]
[1759068416073,6.81051998,109850.0,109840.0,0.00246468]
[1759068416285,7.19471998,109850.0,109840.0,0.00246468]
[1759068417722,7.18043379,109850.0,109840.0,0.00246468]
[1759068420654,7.19471998,109850.0,109840.0,0.00246468]
[1759068422531,6.81051998,109850.0,109840.0,0.00246468]
[1759068422746,7.19463998,109850.0,109840.0,0.00246468]
[1759068426992,6.81051998,109850.0,109840.0,0.00246468]
[1759068427217,7.19455998,109850.0,109840.0,0.00246468]
[1759068427670,7.18027379,109850.0,109840.0,0.00246468]
[1759068429349,6.79623379,109850.0,109840.0,0.00246468]
[1759068429668,7.18027379,109850.0,109840.0,0.00246468]
[1759068430305,6.79623379,109850.0,109840.0,0.00246468]
[1759068430543,7.18027379,109850.0,109840.0,0.00246468]
[1759068430769,6.9918483,109850.0,109840.0,0.00246468]
[1759068432851,6.7792874,109850.0,109840.0,0.00246468]
[1759068433503,6.7792874,109850.0,109840.0,0.30246468]
[1759068433722,6.7792074,109850.0,109840.0,0.30246468]
[1759068435085,6.3952474,109850.0,109840.0,0.30246468]
[1759068435306,6.7792074,109850.0,109840.0,0.30246468]
[1759068437776,6.76492093,109850.0,109840.0,0.30246468]
[1759068439264,6.38096093,109850.0,109840.0,0.30246468]
[1759068439473,6.76488093,109850.0,109840.0,0.30246468]
[1759068440744,6.77916718,109850.0,109840.0,0.30246468]
[1759068448006,6.58527655,109850.0,109840.0,0.30246468]
[1759068451617,6.00500385,109850.0,109840.0,0.30757468]
[1759068451844,6.38876385,109850.0,109840.0,0.30757468]
[1759068452184,6.29380385,109850.0,109840.0,0.30757468]
[1759068452410,6.38872385,109850.0,109840.0,0.30757468]
[1759068452604,6.00500385,109850.0,109840.0,0.30757468]
[1759068452832,6.38872385,109850.0,109840.0,0.30757468]
[1759068453594,6.5707903,109850.0,109840.0,0.30757468]
[1759068454694,6.4030097,109850.0,109840.0,0.30757468]
[1759068457542,0.03904585,109850.0,109840.0,0.30757468]
[1759068457748,0.082,109850.0,109840.0,0.30757468]
[1759068457949,0.082,109850.0,109840.0,0.3349702]
[1759068458150,0.02476,109850.0,109840.0,0.3349702]
[1759068458338,0.65348,109850.0,109840.0,0.3349702]
[1759068458635,0.31348,109850.0,109840.0,0.3349702]
[1759068458842,0.31348,109850.0,109840.0,0.3379702]
[1759068459361,0.31348,109850.0,109840.0,0.3359702]
[1759068459746,0.31348,109850.0,109840.0,0.3429702]
[1759068460185,0.31348,109850.0,109840.0,0.3359702]
[1759068460568,0.31348,109850.0,109840.0,0.3329702]
[1759068460960,0.32776382,109850.0,109840.0,0.3479702]
[1759068464077,0.03904382,109850.0,109840.0,0.3479702]
[1759068464295,0.32768382,109850.0,109840.0,0.3479702]
[1759068465686,0.32764382,109850.0,109840.0,0.3479702]
[1759068466831,0.03904382,109850.0,109840.0,0.3479702]
[1759068467255,0.32760382,109850.0,109840.0,0.3479702]
[1759068468014,0.31332,109850.0,109840.0,0.3479702]
[1759068468841,0.65332,109850.0,109840.0,0.3479702]
[1759068469245,0.65332,109850.0,109840.0,0.3428602]
[1759068469465,8.65332,109850.0,109840.0,0.3428602]
[1759068470061,8.65332,109850.0,109840.0,0.3449202]
[1759068471151,8.66760426,109850.0,109840.0,0.3449202]
[1759068472159,8.66760426,109850.0,109840.0,0.3479402]
[1759068474932,8.84967071,109850.0,109840.0,0.3428602]
[1759068475139,8.94455071,109850.0,109840.0,0.31546468]
[1759068475376,8.97183164,109850.0,109840.0,0.31546468]
[1759068476242,8.97183164,109850.0,109840.0,0.30046468]
[1759068476655,8.97183164,109850.0,109840.0,0.30746468]
[1759068477638,8.95754738,109850.0,109840.0,0.31046468]
[1759068478548,8.57422738,109850.0,109840.0,0.31046468]
[1759068479053,8.95750738,109850.0,109840.0,0.31046468]
[1759068480124,8.98306728,109850.0,109840.0,0.31046468]
[1759068480802,8.99735321,109850.0,109840.0,0.31046468]
[1759068481362,8.99735321,109850.0,109840.0,0.30746468]
[1759068481564,8.99735321,109850.0,109840.0,0.30946468]
[1759068481993,8.99735321,109850.0,109840.0,0.30246468]
[1759068482431,8.99735321,109850.0,109840.0,0.30646468]
[1759068483772,8.97179331,109850.0,109840.0,0.30646468]
[1759068484404,8.7950558,109850.0,109840.0,0.30646468]
[1759068484830,8.7950558,109850.0,109840.0,0.33011468]
[1759068485864,8.4117758,109850.0,109840.0,0.33011468]
[1759068486110,8.7949758,109850.0,109840.0,0.33011468]
[1759068486544,8.8176258,109850.0,109840.0,0.33011468]
[1759068491020,8.4344258,109850.0,109840.0,0.33011468]
[1759068491218,8.8175858,109850.0,109840.0,0.33011468]
[1759068491438,8.80329987,109850.0,109840.0,0.33011468]
[1759068493003,8.42013987,109850.0,109840.0,0.33011468]
[1759068493242,8.23807342,109850.0,109840.0,0.33547468]
[1759068493544,8.33295342,109850.0,109840.0,0.33547468]
[1759068493766,8.59379249,109850.0,109840.0,0.33547468]
[1759068493997,8.49891249,109850.0,109840.0,0.33547468]
[1759068494218,8.60807802,109850.0,109840.0,0.33547468]
[1759068494409,8.22495802,109850.0,109840.0,0.33547468]
[1759068494642,8.60807802,109850.0,109840.0,0.33547468]
[1759068496270,8.51319802,109850.0,109840.0,0.33547468]
[1759068496480,8.60807802,109850.0,109840.0,0.33547468]
[1759068499523,0.22495802,109850.0,109840.0,0.33547468]
[1759068499727,0.59375249,109850.0,109840.0,0.33547468]
[1759068502843,0.60803772,109850.0,109840.0,0.33547468]
[1759068503684,0.03693523,109850.0,109840.0,0.33547468]
[1759068503889,0.32505523,109850.0,109840.0,0.33547468]
[1759068507485,0.31077,109850.0,109840.0,0.33547468]
[1759068510704,0.32505458,109850.0,109840.0,0.33547468]
[1759068515994,0.50712103,109850.0,109840.0,0.33547468]
[1759068516240,8.50712103,109850.0,109840.0,0.33011468]
[1759068518906,8.30951633,109850.0,109840.0,0.33011468]
[1759068519126,8.64951633,109850.0,109840.0,0.33011468]
[1759068519324,8.76672589,109850.0,109840.0,0.33011468]
[1759068519889,8.84059387,109850.0,109840.0,0.33011468]
[1759068520107,8.76672589,109850.0,109840.0,0.33011468]
[1759068520308,8.79413222,109850.0,109840.0,0.33011468]
[1759068520713,8.50621222,109850.0,109840.0,0.33011468]
[1759068520920,8.88901222,109850.0,109840.0,0.32611468]
[1759068521295,8.88901222,109850.0,109840.0,0.32711468]
[1759068521534,8.50621222,109850.0,109840.0,0.32711468]
[1759068521737,8.88901222,109850.0,109840.0,0.32511468]
[1759068522608,8.80841977,109850.0,109840.0,0.32511468]
[1759068522778,8.90329977,109850.0,109840.0,0.32511468]
[1759068524714,8.57589713,109850.0,109840.0,0.32511468]
[1759068524931,8.95869713,109850.0,109840.0,0.32511468]
[1759068525895,8.90329977,109850.0,109840.0,0.32511468]
[1759068527415,8.52049977,109850.0,109840.0,0.32511468]
[1759068527639,8.90329977,109850.0,109840.0,0.32511468]
[1759068527850,8.88901222,109850.0,109840.0,0.32511468]
[1759068530208,8.79409222,109850.0,109840.0,0.32511468]
[1759068530386,8.88901222,109850.0,109840.0,0.32511468]
[1759068530639,8.79405222,109850.0,109840.0,0.32511468]
[1759068530820,8.88897222,109850.0,109840.0,0.32511468]
[1759068530996,8.90325923,109850.0,109840.0,0.32511468]
[1759068533174,8.80833923,109850.0,109840.0,0.32511468]
[1759068533372,8.90325923,109850.0,109840.0,0.32511468]
[1759068533994,8.52049923,109850.0,109840.0,0.32511468]
[1759068534376,8.90321923,109850.0,109840.0,0.32511468]
[1759068535183,8.81615226,109850.0,109840.0,0.32511468]
[1759068535381,8.91107226,109850.0,109840.0,0.32511468]
[1759068535786,8.81615226,109850.0,109840.0,0.32511468]
[1759068535985,8.91107226,109850.0,109840.0,0.32511468]
[1759068541255,8.89678525,109850.0,109840.0,0.32511468]
[1759068541460,8.51406525,109850.0,109840.0,0.32511468]
[1759068541664,8.89674525,109850.0,109840.0,0.32511468]
[1759068541895,8.51406525,109850.0,109840.0,0.32511468]
[1759068542056,8.89674525,109850.0,109840.0,0.32511468]
[1759068542254,8.89670525,109850.0,109840.0,0.32511468]
[1759068542760,8.51406525,109850.0,109840.0,0.32511468]
[1759068542971,8.69349547,109850.0,109840.0,0.32511468]
[1759068543184,8.31085547,109850.0,109840.0,0.32511468]
[1759068543427,8.69349547,109850.0,109840.0,0.32511468]
[1759068543643,8.31085547,109850.0,109840.0,0.32511468]
[1759068543854,8.69349547,109850.0,109840.0,0.32511468]
[1759068544033,8.70778253,109850.0,109840.0,0.32511468]
[1759068547579,8.69349547,109850.0,109840.0,0.32511468]
[1759068550662,8.70778248,109850.0,109840.0,0.32511468]
[1759068552670,8.52386658,109850.0,109840.0,0.32511468]
[1759068556781,8.50957957,109850.0,109840.0,0.32511468]
[1759068559468,8.56242834,109850.0,109840.0,0.32511468]
[1759068559681,8.57671588,109850.0,109840.0,0.32511468]
[1759068560942,9.02551588,109850.0,109840.0,0.32511468]
[1759068561575,9.05566778,109850.0,109840.0,0.32511468]
[1759068567901,9.04138024,109850.0,109840.0,0.32511468]
[1759068570870,9.05566799,109850.0,109840.0,0.32511468]
[1759068574340,9.12739099,109850.0,109840.0,0.32511468]
[1759068576349,9.05566799,109850.0,109840.0,0.32511468]
[1759068576759,8.98853147,109850.0,109840.0,0.32511468]
[1759068580229,9.00281929,109850.0,109840.0,0.32511468]
[1759068580639,9.28733929,109850.0,109840.0,0.32511468]
[1759068580836,9.38225929,109850.0,109840.0,0.32511468]
[1759068581054,9.40759898,109850.0,109840.0,0.32511468]
[1759068581273,9.38225929,109850.0,109840.0,0.32511468]
[1759068581465,9.38225929,109850.0,109840.0,0.32411468]
[1759068582298,8.62217929,109850.0,109840.0,0.32411468]
[1759068582447,9.38421929,109850.0,109840.0,0.32411468]
[1759068582654,9.38421929,109850.0,109840.0,0.32615468]